[Event "13th Chennai Open 2022"]
[Site "Chennai"]
[Date "2022.06.20"]
[Round "2.1"]
[White "Savchenko, Boris"]
[Black "Mrithyunjay Mahadevan"]
[Result "1-0"]
[ECO "B51"]
[WhiteElo "2524"]
[BlackElo "1661"]
[Annotator "TA"]
[PlyCount "65"]
[EventDate "2022.06.19"]
[EventType "swiss"]
[EventCountry "IND"]
[SourceTitle "playchess.com"]
[Source "ChessBase"]
[SourceQuality "1"]
[TimeControl "5400+30"]

{[%evp 9,65,23,33,33,27,22,19,23,41,38,58,42,63,20,32,4,41,45,51,47,55,48,54,53,62,61,70,59,58,47,60,13,35,0,37,35,168,192,252,182,389,389,572,575,562,551,616,453,876,814,2135,2142,2321,2256,2117,2017,1547,1128]} 1. e4 {[%emt 0:01:21]} c5 {[%emt 0:00:06]} 2. Nf3 {[%emt 0:00:08]} d6 {[%emt 0:00:08]} 3. Bb5+ {[%emt 0:00:34]} Nd7 {[%emt 0:00:14]} 4. O-O {[%emt 0:00:56]} a6 {[%emt 0:00:08]} 5. Bd3 {[%emt 0:00:25][%cal Bb5d3,Bd3c2,Bc2b3,Bb3c4][%mdl 32]} g6 {[%emt 0:10:00]} 6. c3 {[%emt 0:00:16] B51: Sicilian: Moscow Variation (3 Bb5+) without 3...Bd7.} Bg7 {[%emt 0:00:09]} 7. a4 {[%emt 0:01:12]} e5 {[%emt 0:09:48]} 8. Bc2 {[%emt 0:02:01] [#] The position is equal.} Qc7 $146 {[%emt 0:00:49]} ({Predecessor:} 8... Ne7 9. d4 O-O 10. d5 b6 11. Na3 h6 12. Nc4 Qc7 13. Qe2 f5 14. Nfd2 Rb8 {0-1 (42) Manukian,A (2196)-Hanley,C (2447) Chess.com INT 2021}) 9. d4 {[%emt 0:00:18]} Ne7 {[%emt 0:02:30]} 10. dxe5 {[%emt 0:03:02]} Nxe5 {[%emt 0:00:56]} 11. Nbd2 {[%emt 0:09:50]} O-O {[%emt 0:03:45]} 12. Bb3 {[%emt 0:03:48]} Rb8 {[%emt 0:03:33]} 13. Nxe5 {[%emt 0:02:57]} dxe5 {[%emt 0:00:51]} 14. a5 {[%emt 0:04:27]} Nc6 {[%emt 0:01:45]} 15. Nc4 $1 {[%emt 0:00:19]} Be6 {[%emt 0:00:22]} 16. Be3 {[%emt 0:01:36]} Bxc4 {[%emt 0:18:59]} 17. Bxc4 {[%emt 0:00:11]} Nxa5 {[%emt 0:00:07]} 18. Bd5 {[%emt 0:00:24] White is more active.} Rfd8 {[%emt 0:00:15]} 19. Qa4 {[%emt 0:11:43][%mdl 1024] Inhibits Nc4. White has compensation.} Nc6 {[%emt 0:00:25]} 20. Qc4 {[%emt 0:01:37]} (20. Bxc5 $14 Ne7 21. Bxe7 Qxe7 22. g3) 20... Bf8 $11 {[%emt 0:03:56]} 21. Kh1 {[%emt 0:12:43]} ({Wrong is} 21. Bxc5 $2 b5 22. Bxf7+ Qxf7 $17) 21... Rbc8 {[%emt 0:10:45]} 22. f4 {[%emt 0:03:49][%cal Bf2f4,Bf4f5][%mdl 32] Hoping for f5.} Rd7 {[%emt 0:04:31] [#] A mistake that costs the game.} (22... Bh6 $1 $14) 23. f5 $1 $18 {[%emt 0:00:53]} Kg7 {[%emt 0:03:38]} (23... Na5 {is a better defense.} 24. Rxa5 Qxa5) 24. Rf3 {[%emt 0:02:26] aiming for Raf1.} Nd8 $2 {[%emt 0:05:28]} (24... Nd4 {was necessary.}) 25. Raf1 {[%emt 0:03:30]} b5 {[%emt 0:03:51]} (25... Kg8 $142 26. fxg6 hxg6) 26. Qe2 {[%emt 0:00:21] White is clearly winning.} Rxd5 {[%emt 0:04:44]} 27. exd5 {[%emt 0:00:35]} Qd6 {[%emt 0:00:30]} 28. Bg5 {[%emt 0:01:25] [#] Strongly threatening fxg6.} Rc7 {[%emt 0:01:06]} (28... Kg8 $142 29. fxg6 hxg6 30. Bxd8 Rxd8 31. Rxf7 Qxd5) 29. Qe4 {[%emt 0:04:43]} Rd7 {[%emt 0:04:22]} 30. fxg6 {[%emt 0:00:49]} hxg6 {[%emt 0:00:12]} 31. Bf6+ {[%emt 0:00:08]} Kg8 {[%emt 0:00:12]} 32. Qh4 {[%emt 0:00:10][%csl Gf6][%cal Rh4h8]} Bg7 {[%emt 0:05:23] Inhibits Qh8+.} 33. Rh3 {[%emt 0:00:25] Weighted Error Value: White=0.17 (very precise) /Black=0.44} 1-0

[Event "13th Chennai Open 2022"]
[Site "Chennai"]
[Date "2022.06.20"]
[Round "2.2"]
[White "Anupam M Sreekumar"]
[Black "Fedorov, Alexei"]
[Result "0-1"]
[ECO "B30"]
[WhiteElo "1673"]
[BlackElo "2529"]
[Annotator "TA"]
[PlyCount "88"]
[EventDate "2022.06.19"]
[EventType "swiss"]
[EventCountry "IND"]
[SourceTitle "playchess.com"]
[Source "ChessBase"]
[SourceQuality "1"]
[TimeControl "5400+30"]

{[%evp 9,88,17,24,16,0,-35,0,-12,0,-25,-27,-36,-22,-19,-15,-28,-4,-17,-30,-28,-19,-33,-9,-37,-25,-39,-24,-47,-42,-45,-55,-52,-49,-59,-53,-62,-68,-59,-60,-50,-33,-36,22,-43,-53,-62,-35,-82,-60,-60,-65,-51,-65,-98,-102,-97,-99,-126,-118,-137,-108,-107,-94,-249,-249,-289,-285,-708,-723,-856,-587,-551,-502,-469,-425,-632,-590,-1739,-1137,-29997,-345]} 1. e4 {[%emt 0:00:07]} c5 {[%emt 0:00:04]} 2. Nf3 {[%emt 0:00:09]} Nc6 {[%emt 0:00:06]} 3. Bb5 {[%emt 0:00:20]} e6 {[%emt 0:00:04]} 4. O-O {[%emt 0:00:28]} Nge7 {[%emt 0:00:05]} 5. Re1 {[%emt 0:01:07]} Ng6 {[%emt 0:05:38]} 6. d4 {[%emt 0:10:06] B30: Sicilian: 2...Nc6 3 Bb5, lines without ...g6.} cxd4 {[%emt 0:00:22]} 7. Bxc6 {[%emt 0:02:38]} bxc6 {[%emt 0:04:19]} 8. Qxd4 {[%emt 0:01:15] The position is equal.} Qb6 {[%emt 0:07:35] [#]} 9. Qxb6 $146 {[%emt 0:10:39]} ({Predecessor:} 9. Be3 Qxd4 10. Bxd4 f6 11. e5 c5 12. Bc3 Bb7 13. Nbd2 Kf7 14. Rad1 Bd5 15. b3 {0-1 (69) Derraugh,G (2169)-Weetik,V (2423) Chess.com INT 2020}) 9... axb6 {[%emt 0:00:03]} 10. Be3 {[%emt 0:03:20]} Ra6 {[%emt 0:02:18]} 11. c4 {[%emt 0:05:18]} Be7 {[%emt 0:02:26]} 12. Nc3 {[%emt 0:02:11]} O-O {[%emt 0:00:12]} 13. a3 {[%emt 0:01:48]} Bb7 {[%emt 0:03:00]} 14. Rad1 {[%emt 0:02:14]} d6 {[%emt 0:02:18]} 15. h3 {[%emt 0:09:33]} c5 {[%emt 0:00:56]} 16. Bc1 {[%emt 0:07:20]} Bc6 {[%emt 0:06:23]} 17. Rd3 {[%emt 0:06:34]} Rd8 {[%emt 0:02:17]} 18. Kh2 {[%emt 0:02:42]} Ra7 {[%emt 0:00:49]} 19. Red1 {[%emt 0:02:27]} Rad7 {[%emt 0:00:35]} 20. b3 {[%emt 0:01:32]} h6 {[%emt 0:04:22]} 21. Re1 {[%emt 0:04:56]} Bf6 {[%emt 0:00:47]} 22. Bb2 {[%emt 0:24:46]} Nf4 {[%emt 0:12:48]} 23. Rd2 {[%emt 0:00:00]} Bxc3 {[%emt 0:05:00]} 24. Bxc3 {[%emt 0:00:00]} e5 {[%emt 0:00:39]} 25. b4 {[%emt 0:00:00]} f6 {[%emt 0:08:00]} ({Black should try} 25... Ba4 $15) 26. Nh4 {[%emt 0:00:00]} (26. b5 $11 Bb7 27. a4) 26... Ra8 $15 {[%emt 0:06:59]} 27. Bb2 {[%emt 0:00:00]} Ra4 {[%emt 0:11:01] Black is more active.} 28. b5 {[%emt 0:00:00]} (28. Nf5 $15 {might be stronger.}) 28... Ba8 {[%emt 0:01:54]} 29. Nf5 {[%emt 0:00:00]} Rxc4 {[%emt 0:00:23]} 30. Nxd6 {[%emt 0:00:00]} ({Avoid the trap} 30. Rxd6 $2 Rxd6 31. Nxd6 Rc2 $19) 30... Ra4 {[%emt 0:00:43][%cal Bc4a4,Ba4a5,Ba5a3][%mdl 32]} 31. Red1 {[%emt 0:00:00]} Rd8 {[%emt 0:01:20] Inhibits Nc8.} 32. f3 {[%emt 0:00:00] Hoping for Nf5.} Ne6 {[%emt 0:13:04]} 33. Nf5 {[%emt 0:05:30] [#]} Nd4 $1 {[%emt 0:00:00]} 34. Kg3 {[%emt 0:00:00]} Ra5 {[%emt 0:00:00]} 35. Bxd4 {[%emt 0:00:00]} exd4 {[%emt 0:00:00]} 36. Rb2 $2 {[%emt 0:00:27] This move loses the game for White.} (36. Nxd4 $17 Rxd4 37. Rxd4 cxd4 38. Rxd4) 36... Rxa3 $19 {[%emt 0:00:00]} 37. Kf4 {[%emt 0:00:25]} Kf7 {[%emt 0:02:30]} 38. e5 $2 {[%emt 0:00:47]} (38. h4) 38... fxe5+ {[%emt 0:00:00]} 39. Kxe5 {[%emt 0:01:21]} Rd5+ {[%emt 0:00:00]} 40. Kf4 {[%emt 0:00:00]} Kf6 {[%emt 0:00:00]} 41. Ng3 {[%emt 0:00:00]} Re5 {[%emt 0:00:00]} 42. Rbb1 {[%emt 0:00:29]} (42. Nf1 $142) 42... Bd5 {[%emt 0:00:00] [#] ...g5+ is the strong threat.} 43. Ne4+ {[%emt 0:00:51]} Bxe4 {[%emt 0:00:00]} 44. fxe4 {[%emt 0:00:07]} g5+ {[%emt 0:00:00] Weighted Error Value: White=0.64/Black=0.28 (precise)} 0-1

[Event "13th Chennai Open 2022"]
[Site "Chennai"]
[Date "2022.06.20"]
[Round "2.3"]
[White "Tran, Tuan Minh"]
[Black "Kanishka S"]
[Result "1/2-1/2"]
[ECO "A14"]
[WhiteElo "2533"]
[BlackElo "1723"]
[Annotator "TA"]
[PlyCount "110"]
[EventDate "2022.06.19"]
[EventType "swiss"]
[EventCountry "IND"]
[SourceTitle "playchess.com"]
[Source "ChessBase"]
[SourceQuality "1"]
[TimeControl "5400+30"]

{[%evp 14,110,14,-15,-12,-27,0,-22,8,5,26,15,16,10,25,14,37,0,9,8,17,30,47,32,49,41,49,32,85,63,47,31,81,50,66,39,27,17,16,-22,-16,-98,-87,-94,-95,-100,-55,-113,-122,-142,-134,-157,-135,-153,-30,-32,-13,-31,-35,-45,-31,-31,-31,-31,-31,-40,0,0,0,-8,19,-37,0,0,0,0,0,0,0,0,0,0,29,0,0,0,0,0,0,0,0,0,0,0,0,0,0,0,0]} 1. Nf3 {[%emt 0:00:30]} d5 {[%emt 0:00:21]} 2. c4 {[%emt 0:00:10]} e6 {[%emt 0:00:17]} 3. g3 {[%emt 0:00:12]} Nf6 {[%emt 0:00:08]} 4. Bg2 {[%emt 0:00:05]} Be7 {[%emt 0:00:08]} 5. O-O {[%emt 0:00:06]} O-O {[%emt 0:00:13]} 6. b3 {[%emt 0:00:13]} b6 {[%emt 0:00:50] 6...d4 is the modern continuation.} 7. Bb2 {[%emt 0:00:09]} Bb7 {[%emt 0:00:12]} 8. Qc2 {[%emt 0:00:34]} c5 {[%emt 0:01:01] A14: English Opening: 1...e6 with b3 by White.} 9. cxd5 {[%emt 0:01:34]} Nxd5 {[%emt 0:03:46]} 10. a3 {[%emt 0:00:37]} Nd7 {[%emt 0:03:23]} 11. Rd1 {[%emt 0:02:11] [#]} Qc7 $146 {[%emt 0:04:29]} ({Predecessor:} 11... Rc8 12. d3 Bf6 13. Nbd2 Bxb2 14. Qxb2 b5 15. Ne4 Qe7 16. Ne5 Rc7 17. Rac1 Rfc8 {1-0 (60) Bornholdt,J (1890)-Gillmeister,G (1599) Magdeburg 2019}) 12. d3 {[%emt 0:01:26]} Rac8 {[%emt 0:01:11]} 13. Nbd2 {[%emt 0:00:08]} Qb8 {[%emt 0:03:07]} 14. Rac1 {[%emt 0:03:31]} Rfd8 {[%emt 0:02:29]} 15. Qb1 {[%emt 0:00:16]} (15. e4 $5 {[%cal Re4d5]} N5f6 16. Nc4 $11) 15... Qa8 {[%emt 0:00:41]} 16. Nc4 {[%emt 0:02:22]} N5f6 {[%emt 0:14:13]} 17. b4 {[%emt 0:00:45]} cxb4 {[%emt 0:04:11]} 18. axb4 {[%emt 0:00:10]} Nd5 {[%emt 0:00:43]} 19. b5 {[%emt 0:02:16]} N5f6 {[%emt 0:15:18]} 20. Qa2 {[%emt 0:03:30]} Nc5 {[%emt 0:05:39]} (20... a6 $14) 21. Ba3 {[%emt 0:06:01] Threatens to win with d4.} Bf8 {[%emt 0:07:08][%cal Oc5d3]} 22. d4 {[%emt 0:13:10]} Nce4 {[%emt 0:00:13]} (22... Ncd7 $14) 23. Bxf8 {[%emt 0:00:07]} Rxf8 {[%emt 0:02:55]} 24. Nfe5 {[%emt 0:00:49] Hoping for f3.} (24. Qa3 $5 {[%cal Rf3e5]}) 24... Bd5 {[%emt 0:08:16][%cal Oe4f2]} 25. Bf3 {[%emt 0:09:01]} Rc7 $1 {[%emt 0:08:45]} 26. Qa3 {[%emt 0:02:30][%cal Oe5c6]} Rfc8 {[%emt 0:01:08][%cal Rd5c4]} 27. Nc6 {[%emt 0:26:03]} (27. Qa4 $1 $11) 27... Bxc6 $17 {[%emt 0:04:01]} 28. bxc6 {[%emt 0:00:17]} Qxc6 {[%emt 0:01:03]} 29. Kg2 {[%emt 0:00:36]} b5 {[%emt 0:03:09]} 30. Ne5 {[%emt 0:02:44] [#]} (30. Nd2 $1 $15 Qd6 31. Qxd6 Nxd6 32. Ra1) 30... Qb6 $1 {[%emt 0:01:25]} (30... Qxc1 $6 31. Rxc1 Rxc1 32. Qxa7 $14) 31. Rxc7 {[%emt 0:23:57]} Rxc7 {[%emt 0:00:05]} (31... Qxc7 32. Ra1 $11) 32. Bxe4 {[%emt 0:00:00]} Nxe4 {[%emt 0:00:09]} 33. Qf3 {[%emt 0:00:00] [#]} Qb7 {[%emt 0:02:18]} (33... f5 $1 $17 {aiming for ...a5.} 34. Qb3 Nc3) 34. d5 $1 $11 {[%emt 0:00:00]} Ng5 {[%emt 0:03:13]} (34... Nc3 $2 35. d6 Qxf3+ 36. Kxf3 $18) 35. Qf4 {[%emt 0:00:00]} f6 {[%emt 0:00:57]} 36. h4 {[%emt 0:00:00] [#]} exd5 $1 {[%emt 0:00:27] ...Ne6 is the strong threat.} 37. hxg5 {[%emt 0:00:00]} fxe5 {[%emt 0:00:02]} 38. Qxe5 $15 {[%emt 0:00:00][%cal Re5e8][%mdl 4096] Endgame KQR-KQR} Re7 {[%emt 0:00:14] Prevents Qe8+.} 39. Qd6 {[%emt 0:00:00]} ({Avoid the trap} 39. Qxd5+ $2 Qxd5+ 40. Rxd5 Rb7 $19) 39... Qd7 {[%emt 0:00:58]} (39... d4+ $5 40. Kh2 Qd7 $17) 40. Qc5 {[%emt 0:00:00]} Rxe2 {[%emt 0:00:59]} 41. Rxd5 {[%emt 0:00:08]} Qb7 {[%emt 0:00:14]} 42. Qd4 {[%emt 0:04:20] Against Rd2} (42. Kf1 $11 Re8 43. Qxb5 Qxb5+ 44. Rxb5) 42... Re8 {[%emt 0:00:17]} 43. Kh2 {[%emt 0:00:06]} Rf8 {[%emt 0:01:04]} 44. f4 {[%emt 0:00:46] And now Rd7 would win.} Qc6 {[%emt 0:00:28]} 45. Rc5 {[%emt 0:00:44]} Qe6 {[%emt 0:00:11]} 46. Re5 {[%emt 0:00:36] Active counter play!} Qa2+ {[%emt 0:00:13]} 47. Kh3 {[%emt 0:00:07]} Qb1 {[%emt 0:00:37] Strongly threatening ...Qh1+.} 48. Qd5+ {[%emt 0:01:07]} (48. Re7 $5 Qg6 49. Qd5+ (49. Qxa7 Re8 $11) (49. Rxa7 Qh5+ 50. Kg2 Qe2+ 51. Qf2 Qe4+ 52. Qf3 Qc4 $11) 49... Kh8 50. Qxb5 $14) 48... Kh8 {[%emt 0:00:00] The position is equal.} 49. Qxb5 {[%emt 0:00:33]} Qh1+ {[%emt 0:00:07]} 50. Kg4 {[%emt 0:00:04]} g6 {[%emt 0:01:08][%csl Gg6][%cal Rh1h5]} 51. f5 {[%emt 0:00:27]} gxf5+ {[%emt 0:00:33]} 52. Rxf5 {[%emt 0:00:08]} Qd1+ {[%emt 0:00:24]} 53. Kh4 {[%emt 0:00:22] White threatens Qe5+ and mate.} Qh1+ {[%emt 0:00:07]} 54. Kg4 {[%emt 0:00:01] White wants to mate with Qe5+.} Qd1+ {[%emt 0:00:06]} 55. Kh4 {[%emt 0:00:06] Qe5+ would kill now.} Qh1+ {[%emt 0:02:46] Weighted Error Value: White=0.15 (very precise) /Black=0.14 (very precise)} 1/2-1/2

[Event "13th Chennai Open 2022"]
[Site "Chennai"]
[Date "2022.06.20"]
[Round "2.4"]
[White "Arora Honi"]
[Black "Aronyak Ghosh"]
[Result "0-1"]
[ECO "B13"]
[WhiteElo "1679"]
[BlackElo "2494"]
[Annotator "TA"]
[PlyCount "82"]
[EventDate "2022.06.19"]
[EventType "swiss"]
[EventCountry "IND"]
[SourceTitle "playchess.com"]
[Source "ChessBase"]
[SourceQuality "1"]
[TimeControl "5400+30"]

{[%evp 20,82,26,12,20,0,0,0,0,0,22,2,17,-8,0,-25,-19,-52,-64,-56,-45,-62,-2,0,24,27,55,54,67,10,16,-43,-66,-82,-72,-67,-77,-61,-70,-210,-201,-210,-191,-190,-202,-199,-194,-190,-199,-190,-190,-238,-237,-237,-206,-286,-273,-1009,-947,-29985,-29986,-29985,-29986,-29987,-29988]} 1. d4 {[%emt 0:00:03]} d5 {[%emt 0:00:55]} 2. Bf4 {[%emt 0:00:08]} c5 {[%emt 0:02:43]} 3. e3 {[%emt 0:00:12]} Nc6 {[%emt 0:01:32]} 4. Nf3 {[%emt 0:00:08]} Bg4 {[%emt 0:03:42]} 5. Nbd2 {[%emt 0:06:15]} e6 {[%emt 0:01:18]} 6. c3 {[%emt 0:00:27]} cxd4 {[%emt 0:02:20]} 7. exd4 {[%emt 0:00:41]} Bd6 {[%emt 0:00:10]} 8. Bxd6 {[%emt 0:04:15]} Qxd6 {[%emt 0:00:02]} 9. Bd3 {[%emt 0:02:31]} Nf6 {[%emt 0:00:41]} 10. O-O {[%emt 0:03:32]} O-O {[%emt 0:00:07]} 11. Qb3 {[%emt 0:03:24]} Rab8 {[%emt 0:08:45] B13: Caro-Kann: Exchange Variation and Panov-Botvinnik Attack.} 12. Rae1 {[%emt 0:04:13]} Bxf3 {[%emt 0:01:56]} 13. Nxf3 {[%emt 0:00:38]} b5 {[%emt 0:00:17] The position is equal.} 14. a3 {[%emt 0:06:38]} (14. Bxb5 $2 a6 15. Qc2 Rxb5 $19) 14... Nd7 {[%emt 0:04:50]} 15. Re3 {[%emt 0:05:19] [#]} ({But not} 15. Bxb5 $2 a6 16. a4 axb5 17. axb5 Na7 $19) 15... h6 $146 {[%emt 0:00:46]} ({Predecessor:} 15... Na5 16. Qc2 Nc4 17. Bxc4 bxc4 18. Ng5 Nf6 19. Rf3 h6 20. Rxf6 hxg5 21. Rf3 Rb7 22. Rh3 g6 23. Rg3 Rfb8 24. Rb1 Qxa3 25. Rxg5 Rxb2 26. Rxg6+ Kf8 {0-1 (26) Krstulovic,A (2395)-Jobava,B (2588) Chess.com INT 2022}) 16. Rfe1 {[%emt 0:02:08]} ({Avoid the trap} 16. Bxb5 $2 a6 17. a4 axb5 18. axb5 Na5 $19) 16... a5 {[%emt 0:05:16]} 17. Bb1 {[%emt 0:08:56]} Rfc8 {[%emt 0:02:49][%cal Bf8c8,Bc8c4,Bc4f4][%mdl 32]} 18. Ne5 {[%emt 0:02:28]} Ncxe5 {[%emt 0:05:21]} 19. dxe5 {[%emt 0:00:19]} Qe7 {[%emt 0:00:52]} 20. Rg3 {[%emt 0:03:19]} Nf8 {[%emt 0:05:55]} ({Black should try} 20... b4 $1 $15) 21. Qd1 {[%emt 0:03:24]} Rc4 {[%emt 0:04:14]} 22. Bd3 {[%emt 0:10:56]} Rf4 {[%emt 0:05:48]} 23. Qd2 {[%emt 0:03:34]} Qh4 {[%emt 0:00:47]} 24. Rh3 {[%emt 0:05:48]} (24. Rge3 $14) 24... Qg5 $11 {[%emt 0:00:05] [#]} 25. g3 {[%emt 0:07:03] [#]} (25. Rh5 $1 $11 Qxh5 26. Qxf4) 25... Re4 $1 $15 {[%emt 0:02:59]} 26. f4 {[%emt 0:00:08]} (26. Qd1 Rxe1+) 26... Rxe1+ {[%emt 0:00:08]} 27. Qxe1 {[%emt 0:00:07]} Qd8 {[%emt 0:02:18]} 28. g4 {[%emt 0:03:23]} d4 {[%emt 0:02:53]} 29. Qg3 {[%emt 0:03:46] White does not recover from this.} ({Better is} 29. cxd4 $15 Qxd4+ 30. Qf2) 29... dxc3 $19 {[%emt 0:00:29]} 30. bxc3 {[%emt 0:00:08] [#]} b4 $1 {[%emt 0:02:20]} 31. axb4 {[%emt 0:05:13]} axb4 {[%emt 0:00:03]} 32. cxb4 {[%emt 0:01:32]} Rxb4 {[%emt 0:00:08] Threatens to win with ...Ng6.} 33. Qe3 {[%emt 0:00:52]} Ng6 {[%emt 0:01:03]} 34. Rf3 {[%emt 0:01:54] [#]} Nh4 $1 {[%emt 0:02:12]} 35. Rh3 {[%emt 0:00:38]} (35. Rf2 $142) 35... g5 {[%emt 0:04:48]} 36. fxg5 {[%emt 0:01:08]} hxg5 {[%emt 0:00:08]} ({Weaker is} 36... Rxg4+ 37. Rg3 Rxg5 38. Qf4 $17) 37. Rg3 {[%emt 0:01:14]} Rf4 {[%emt 0:00:31] Strongly threatening ...Qa8.} 38. Bc2 $2 {[%emt 0:01:21]} (38. h3) 38... Qa5 {[%emt 0:00:41] ( -> ...Qa1+)} 39. h3 {[%emt 0:00:42]} Qa1+ {[%emt 0:00:33] Black mates.} 40. Kh2 {[%emt 0:00:07]} Qf1 {[%emt 0:00:16]} 41. Qg1 {[%emt 0:01:30]} Qe2+ {[%emt 0:00:39] Weighted Error Value: White=0.74/Black=0.05 (flawless)} 0-1

[Event "13th Chennai Open 2022"]
[Site "Chennai"]
[Date "2022.06.20"]
[Round "2.5"]
[White "Deepan Chakkravarthy J."]
[Black "Ashwin Sairam"]
[Result "1-0"]
[ECO "A07"]
[WhiteElo "2478"]
[BlackElo "1670"]
[Annotator "TA"]
[PlyCount "65"]
[EventDate "2022.06.19"]
[EventType "swiss"]
[EventCountry "IND"]
[SourceTitle "playchess.com"]
[Source "ChessBase"]
[SourceQuality "1"]
[TimeControl "5400+30"]

{[%evp 9,65,0,0,0,8,7,14,11,10,8,10,0,0,8,22,6,18,9,15,16,46,27,41,42,81,80,87,79,87,90,86,61,46,19,15,18,127,122,126,135,129,145,212,206,204,210,658,651,632,631,893,881,1015,1031,1022,1023,952,868]} 1. Nf3 {[%emt 0:00:23]} d5 {[%emt 0:00:11]} 2. g3 {[%emt 0:00:04]} Nf6 {[%emt 0:00:08]} 3. Bg2 {[%emt 0:00:04]} c6 {[%emt 0:00:18]} 4. O-O {[%emt 0:00:07]} Bg4 {[%emt 0:00:07]} 5. b3 {[%emt 0:01:14]} e6 {[%emt 0:06:36]} 6. Bb2 {[%emt 0:00:32] A07: Réti Opening: New York and Capablanca Systems.} Bd6 {[%emt 0:00:44]} 7. h3 {[%emt 0:00:55]} Bxf3 {[%emt 0:00:24]} 8. Bxf3 {[%emt 0:01:07] The position is equal.} O-O {[%emt 0:00:28]} 9. d3 {[%emt 0:00:22] [#]} e5 $146 {[%emt 0:01:54]} ({Predecessor:} 9... Nbd7 10. Nd2 Qb6 11. c4 Bxg3 12. e3 Bd6 13. cxd5 cxd5 14. Kh1 Rac8 15. Rc1 Qa6 16. d4 Qxa2 17. Rxc8 Rxc8 18. Qa1 Qxa1 19. Rxa1 {0-1 (34) Secondi,A (661)-Trevis,R (987) LSS email 2011}) 10. Nd2 {[%emt 0:00:07]} Nbd7 {[%emt 0:00:18]} 11. Bg2 {[%emt 0:02:03]} Qe7 {[%emt 0:00:30]} 12. a4 {[%emt 0:03:04]} a5 {[%emt 0:01:27]} 13. e4 {[%emt 0:00:24]} dxe4 {[%emt 0:13:26]} 14. dxe4 {[%emt 0:02:41]} Nc5 {[%emt 0:08:02]} 15. Qe2 {[%emt 0:12:50]} Rfe8 {[%emt 0:03:30]} 16. Rad1 {[%emt 0:04:52]} Rad8 {[%emt 0:02:58]} 17. Nc4 {[%emt 0:01:28]} Bc7 {[%emt 0:01:17]} 18. Ba3 {[%emt 0:01:18]} b6 {[%emt 0:04:09]} 19. Qe3 {[%emt 0:01:15][%cal Oc4a5]} Nfd7 {[%emt 0:02:40]} 20. h4 {[%emt 0:02:09] White is more active.} b5 $1 {[%emt 0:05:47]} 21. Nxa5 {[%emt 0:06:42]} Bxa5 {[%emt 0:01:32]} 22. b4 {[%emt 0:00:02]} Nxa4 {[%emt 0:02:13]} 23. bxa5 $16 {[%emt 0:00:03][%mdl 64] Discovered Attack} b4 {[%emt 0:00:07] [#]} 24. Qb3 $36 {[%emt 0:00:04][%csl LRa4,LRb4][%mdl 2048] White is in control.} bxa3 {[%emt 0:01:16]} 25. Qxa4 {[%emt 0:00:04]} Qc5 {[%emt 0:01:31]} (25... Ra8 $16 {keeps fighting.}) 26. Rd3 $18 {[%emt 0:59:36]} Nf6 {[%emt 0:02:40]} 27. Qxa3 {[%emt 0:00:00]} ({Don't take} 27. Rxa3 $6 Ra8 28. a6 Reb8) 27... Qxc2 {[%emt 0:01:19]} (27... Qxa3 28. Rxa3 Re7) 28. Rxd8 {[%emt 0:00:00] White is clearly winning.} Rxd8 {[%emt 0:00:05]} 29. a6 {[%emt 0:00:00][%cal Ba5a6,Ba6a7][%mdl 32]} Qd2 {[%emt 0:07:12]} 30. a7 {[%emt 0:00:00]} Ra8 {[%emt 0:00:03]} 31. Rb1 {[%emt 0:00:00] [#] White wants to mate with Rb8+.} Qd8 {[%emt 0:00:28] Inhibits Rb8.} 32. Rb7 {[%emt 0:00:00]} Qe8 {[%emt 0:12:06]} 33. Qd6 {[%emt 0:00:00] Weighted Error Value: White=0.03 (flawless) /Black=0.35} 1-0